fUST/lending_fUST_20240721
["ID","MTS","AMOUNT","RATE_DAILY","PERIOD"]
[332786713,1721521840334,-500.0,0.00013698,2]
[332786714,1721521840344,-276.89937302,0.00013698,2]
[332786715,1721521840353,-500.0,0.00013698,2]
[332786716,1721521840363,-500.0,0.00013698,2]
[332786717,1721521840374,-500.0,0.00013698,2]
[332786718,1721521840384,-500.0,0.00013698,2]
[332786719,1721521840393,-526.1689231,0.00013698,2]
[332786720,1721521840402,-1091.55,0.00013698,2]
[332786721,1721521840412,-500.0,0.00013698,2]
[332786722,1721521840421,-500.0,0.00013698,2]
[332786723,1721521840430,-500.0,0.00013698,2]
[332786724,1721521840439,-500.0,0.00013698,2]
[332786725,1721521840449,-502.96509409,0.00013698,2]
[332786726,1721521840458,-500.0,0.00013698,2]
[332786727,1721521840468,-504.50131564,0.00013698,2]
[332786728,1721521840477,-500.0,0.00013698,2]
[332786729,1721521840486,-484.1569262,0.00013698,2]
[332786730,1721521840495,-500.0,0.00013698,2]
[332786731,1721521840505,-500.0,0.00013698,2]
[332786732,1721521840514,-500.0,0.00013698,2]
[332786733,1721521840524,-500.0,0.00013698,2]
[332786734,1721521840534,-1839.81,0.00013698,2]
[332786735,1721521840543,-500.0,0.00013698,2]
[332786736,1721521840553,-500.0,0.00013698,2]
[332786737,1721521840562,-564.55397441,0.00013698,2]
[332786739,1721521840572,-628.81656615,0.00013698,2]
[332786741,1721521840581,-500.0,0.00013698,2]
[332786742,1721521840591,-500.0,0.00013698,2]
[332786743,1721521840601,-174.31015921,0.00013698,2]
[332786744,1721521840613,-500.0,0.00013698,2]
[332786745,1721521840622,-212.88331305,0.00013698,2]
[332786746,1721521840631,-568.21,0.00013698,2]
[332786747,1721521840640,-502.01108199,0.00013698,2]
[332786748,1721521840650,-500.0,0.00013698,2]
[332786749,1721521840661,-500.0,0.00013698,2]
[332786750,1721521840671,-502.41928809,0.00013698,2]
[332786751,1721521840683,-500.0,0.00013698,2]
[332786752,1721521840692,-500.0,0.00013698,2]
[332786754,1721521840702,-500.0,0.00013698,2]
[332786755,1721521840711,-500.0,0.00013698,2]
[332786757,1721521840721,-576.8,0.00013698,2]
[332786759,1721521840731,-500.0,0.00013698,2]
[332786760,1721521840740,-500.0,0.00013698,2]
[332786761,1721521840750,-500.0,0.00013698,2]
[332786762,1721521840761,-500.0,0.00013698,2]
[332786763,1721521840770,-504.29336531,0.00013698,2]
[332786764,1721521840780,-261.30972445,0.00013698,2]
[332786765,1721521840790,-170.43129503,0.00013698,2]
[332786766,1721521840799,-500.0,0.00013698,2]
[332786767,1721521840809,-505.11920375,0.00013698,2]
[332786768,1721521840818,-500.0,0.00013698,2]
[332786769,1721521840828,-732.11,0.00013698,2]
[332786770,1721521840837,-500.0,0.00013698,2]
[332786771,1721521840847,-589.15,0.00013698,2]
[332786772,1721521840858,-500.0,0.00013698,2]
[332786773,1721521840868,-503.36826388,0.00013698,2]
[332786774,1721521840877,-500.0,0.00013698,2]
[332786775,1721521840887,-1635.45,0.00013698,2]
[332786776,1721521840896,-500.0,0.00013698,2]
[332786777,1721521840906,-2679.03,0.00013698,2]
[332786778,1721521840917,-500.0,0.00013698,2]
[332786779,1721521840926,-500.0,0.00013698,2]
[332786780,1721521840936,-635.03105591,0.00013698,2]
[332786781,1721521840947,-529.66,0.00013698,2]
[332786782,1721521840958,-799.14,0.00013698,2]
[332786783,1721521840969,-500.0,0.00013698,2]
[332786784,1721521840979,-757.0,0.00013698,2]
[332786785,1721521840989,-500.0,0.00013698,2]
[332786786,1721521841001,-500.0,0.00013698,2]
[332786787,1721521841013,-503.24791271,0.00013698,2]
[332786788,1721521841024,-1510.98,0.00013698,2]
[332786789,1721521841033,-500.0,0.00013698,2]
[332786790,1721521841043,-576.63,0.00013698,2]
[332786791,1721521841053,-500.0,0.00013698,2]
[332786792,1721521841062,-634.9,0.00013698,2]
[332786793,1721521841071,-500.0,0.00013698,2]
[332786794,1721521841080,-646.81,0.00013698,2]
[332786795,1721521841090,-500.0,0.00013698,2]
[332786796,1721521841099,-500.0,0.00013698,2]
[332786797,1721521841110,-899.22,0.00013698,2]
[332786798,1721521841120,-1190.33,0.00013698,2]
[332786799,1721521841130,-1936.99,0.00013698,2]
[332786800,1721521841139,-500.0,0.00013698,2]
[332786801,1721521841149,-503.66910884,0.00013698,2]
[332786802,1721521841158,-256.28354357,0.00013698,2]
[332786803,1721521841167,-551.98589564,0.00013698,2]
[332786804,1721521841176,-811.32,0.00013698,2]
[332786805,1721521841186,-500.0,0.00013698,2]
[332786806,1721521841195,-500.0,0.00013698,2]
[332786807,1721521841204,-500.0,0.00013698,2]
[332786808,1721521841214,-500.0,0.00013698,2]
[332786809,1721521841223,-2637.96,0.00013698,2]
[332786810,1721521841232,-502.60980733,0.00013698,2]
[332786811,1721521841241,-500.0,0.00013698,2]
[332786812,1721521841250,-500.0,0.00013698,2]
[332786813,1721521841259,-500.0,0.00013698,2]
[332786814,1721521841268,-500.0,0.00013698,2]
[332786815,1721521841278,-500.0,0.00013698,2]
[332786816,1721521841287,-500.0,0.00013698,2]
[332786817,1721521841296,-500.0,0.00013698,2]
[332786818,1721521841305,-500.0,0.00013698,2]
[332786819,1721521841314,-500.0,0.00013698,2]
[332786820,1721521841324,-500.0,0.00013698,2]
[332786821,1721521841334,-500.0,0.00013698,2]
[332786822,1721521841343,-500.0,0.00013698,2]
[332786823,1721521841352,-535.35997023,0.00013698,2]
[332786824,1721521841363,-500.0,0.00013698,2]
[332786825,1721521841373,-500.0,0.00013698,2]
[332786826,1721521841384,-500.0,0.00013698,2]
[332786827,1721521841393,-500.0,0.00013698,2]
[332786828,1721521841403,-500.0,0.00013698,2]
[332786829,1721521841413,-500.0,0.00013698,2]
[332786830,1721521841422,-500.0,0.00013698,2]
[332786831,1721521841628,-500.0,0.00013698,2]
[332786832,1721521841639,-515.84546709,0.00013698,2]
[332786833,1721521841651,-500.0,0.00013698,2]
[332786834,1721521841660,-500.0,0.00013698,2]
[332786835,1721521841672,-500.0,0.00013698,2]
[332786836,1721521841681,-464.7569869,0.00013698,2]
[332786837,1721521841691,-500.0,0.00013698,2]
[332786838,1721521841702,-500.0,0.00013698,2]
[332786839,1721521841712,-500.0,0.00013698,2]
[332786840,1721521841723,-500.0,0.00013698,2]
[332786841,1721521841734,-500.0,0.00013698,2]
[332786842,1721521841743,-500.0,0.00013698,2]
[332786843,1721521841753,-500.0,0.00013698,2]
[332786844,1721521841765,-500.0,0.00013698,2]
[332786845,1721521841775,-500.0,0.00013698,2]
[332786846,1721521841785,-1049.64,0.00013698,2]
[332786847,1721521841794,-500.0,0.00013698,2]
[332786848,1721521841804,-500.0,0.00013698,2]
[332786849,1721521841813,-501.41672592,0.00013698,2]
[332786850,1721521841823,-500.0,0.00013698,2]
[332786851,1721521841833,-500.0,0.00013698,2]
[332786852,1721521841842,-1136.8,0.00013698,2]
[332786853,1721521841852,-510.46,0.00013698,2]
[332786854,1721521841865,-1064.54,0.00013698,2]
[332786855,1721521841874,-500.0,0.00013698,2]
[332786856,1721521841883,-534.5,0.00013698,2]
[332786857,1721521841892,-500.0,0.00013698,2]
[332786858,1721521841901,-500.0,0.00013698,2]
[332786859,1721521841911,-500.0,0.00013698,2]
[332786860,1721521841920,-500.0,0.00013698,2]
[332786861,1721521841929,-2000.0,0.00013698,2]
[332786862,1721521841940,-500.0,0.00013698,2]
[332786863,1721521841951,-500.0,0.00013698,2]
[332786864,1721521841961,-500.0,0.00013698,2]
[332786865,1721521841971,-500.0,0.00013698,2]
[332786866,1721521841981,-630.97,0.00013698,2]
[332786867,1721521841991,-805.73,0.00013698,2]
[332786868,1721521842001,-509.2,0.00013698,2]
[332786869,1721521842016,-4153.41,0.00013698,2]
[332786870,1721521842027,-500.0,0.00013698,2]
[332786871,1721521842037,-1667.98,0.00013698,2]
[332786872,1721521842047,-555.23502785,0.00013698,2]
[332786873,1721521842057,-500.0,0.00013698,2]
[332786874,1721521842067,-831.74,0.00013698,2]
[332786875,1721521842076,-500.0,0.00013698,2]
[332786876,1721521842088,-1456.09,0.00013698,2]
[332786877,1721521842099,-500.0,0.00013698,2]
[332786878,1721521842110,-500.0,0.00013698,2]
[332786879,1721521842120,-500.0,0.00013698,2]
[332786880,1721521842129,-500.0,0.00013698,2]
[332786881,1721521842140,-342.45378004,0.00013698,2]
[332786882,1721521842150,-500.0,0.00013698,2]
[332786883,1721521842159,-525.08,0.00013698,2]
[332786884,1721521842169,-500.0,0.00013698,2]
[332786885,1721521842178,-500.0,0.00013698,2]
[332786886,1721521842187,-500.0,0.00013698,2]
[332786887,1721521842199,-500.0,0.00013698,2]
[332786888,1721521842209,-500.0,0.00013698,2]
[332786889,1721521842219,-501.71905467,0.00013698,2]
[332786890,1721521842230,-500.0,0.00013698,2]
[332786891,1721521842240,-500.0,0.00013698,2]
[332786892,1721521842251,-500.0,0.00013698,2]
[332786893,1721521842262,-618.06,0.00013698,2]
[332786894,1721521842271,-500.0,0.00013698,2]
[332786895,1721521842281,-500.0,0.00013698,2]
[332786896,1721521842290,-511.26929444,0.00013698,2]
[332786897,1721521842300,-500.0,0.00013698,2]
[332786898,1721521842309,-507.41895197,0.00013698,2]
[332786899,1721521842319,-500.0,0.00013698,2]
[332786900,1721521842328,-500.0,0.00013698,2]
[332786901,1721521842338,-1475.13,0.00013698,2]
[332786902,1721521842347,-500.0,0.00013698,2]
[332786903,1721521842356,-500.0,0.00013698,2]
[332786904,1721521842366,-515.7897912,0.00013698,2]
[332786905,1721521842375,-500.0,0.00013698,2]
[332786906,1721521842384,-500.0,0.00013698,2]
[332786907,1721521842393,-500.0,0.00013698,2]
[332786908,1721521842402,-500.0,0.00013698,2]
[332786909,1721521842412,-1729.6,0.00013698,2]
[332786910,1721521842421,-1734.52,0.00013698,2]
[332786911,1721521842430,-526.07354938,0.00013698,2]
[332786912,1721521842440,-500.0,0.00013698,2]
[332786913,1721521842451,-787.17,0.00013698,2]
[332786914,1721521842462,-500.0,0.00013698,2]
[332786915,1721521842472,-500.0,0.00013698,2]
[332786916,1721521842483,-500.0,0.00013698,2]
[332786917,1721521842493,-265.28233253,0.00013698,2]
[332786918,1721521842503,-500.0,0.00013698,2]
[332786919,1721521842513,-500.0,0.00013698,2]
[332786920,1721521842524,-752.07,0.00013698,2]
[332786921,1721521842534,-522.39727874,0.00013698,2]
[332786922,1721521842545,-500.0,0.00013698,2]
[332786923,1721521842554,-500.0,0.00013698,2]
[332786924,1721521842564,-512.22231295,0.00013698,2]
[332786925,1721521842573,-500.0,0.00013698,2]
[332786926,1721521842583,-870.08,0.00013698,2]
[332786927,1721521842592,-500.0,0.00013698,2]
[332786928,1721521842601,-500.0,0.00013698,2]
[332786929,1721521842611,-1212.0,0.00013698,2]
[332786930,1721521842621,-500.0,0.00013698,2]
[332786931,1721521842631,-758.56,0.00013698,2]
[332786932,1721521842640,-500.0,0.00013698,2]
[332786933,1721521842650,-500.0,0.00013698,2]
[332786934,1721521842662,-500.0,0.00013698,2]
[332786935,1721521842673,-601.45111712,0.00013698,2]
[332786936,1721521842683,-228.13644181,0.00013698,2]
[332786937,1721521842693,-500.0,0.00013698,2]
[332786938,1721521842703,-500.0,0.00013698,2]
[332786939,1721521842715,-500.0,0.00013698,2]
[332786940,1721521842726,-500.0,0.00013698,2]
[332786941,1721521842736,-986.43,0.00013698,2]
[332786942,1721521842746,-500.0,0.00013698,2]
[332786943,1721521842755,-500.0,0.00013698,2]
[332786944,1721521842765,-500.0,0.00013698,2]
[332786945,1721521842774,-500.0,0.00013698,2]
[332786946,1721521842784,-500.0,0.00013698,2]
[332786947,1721521842793,-512.82149887,0.00013698,2]
[332786948,1721521842804,-500.0,0.00013698,2]
[332786949,1721521842814,-500.0,0.00013698,2]
[332786950,1721521842823,-787.65,0.00013698,2]
[332786951,1721521842835,-500.0,0.00013698,2]
[332786952,1721521842846,-2388.76,0.00013698,2]
[332786953,1721521842856,-500.0,0.00013698,2]
[332786954,1721521842866,-500.0,0.00013698,2]
[332786955,1721521842876,-500.0,0.00013698,2]
[332786956,1721521842885,-500.0,0.00013698,2]
[332786957,1721521842895,-500.0,0.00013698,2]
[332786958,1721521842905,-500.0,0.00013698,2]
[332786959,1721521842915,-2495.91,0.00013698,2]
[332786960,1721521842925,-500.0,0.00013698,2]
[332786961,1721521842935,-500.0,0.00013698,2]
[332786962,1721521842944,-500.0,0.00013698,2]
[332786963,1721521842956,-500.0,0.00013698,2]
[332786964,1721521842965,-500.0,0.00013698,2]
[332786965,1721521842974,-500.0,0.00013698,2]
[332786966,1721521842984,-500.0,0.00013698,2]
[332786967,1721521842993,-501.47697445,0.00013698,2]
[332786968,1721521843004,-1621.62,0.00013698,2]
[332786969,1721521843020,-532.15,0.00013698,2]
[332786970,1721521843030,-500.51009932,0.00013698,2]
[332786971,1721521843040,-500.0,0.00013698,2]
[332786972,1721521843050,-500.0,0.00013698,2]
[332786973,1721521843061,-500.0,0.00013698,2]
[332786974,1721521843071,-500.0,0.00013698,2]
[332786975,1721521843080,-500.0,0.00013698,2]
[332786976,1721521843092,-500.0,0.00013698,2]
[332786977,1721521843101,-500.0,0.00013698,2]
[332786978,1721521843111,-500.0,0.00013698,2]
[332786979,1721521843120,-500.0,0.00013698,2]
[332786980,1721521843129,-500.0,0.00013698,2]
[332786981,1721521843139,-1788.26,0.00013698,2]
[332786982,1721521843148,-500.0,0.00013698,2]
[332786983,1721521843158,-500.0,0.00013698,2]
[332786984,1721521843167,-500.0,0.00013698,2]
[332786985,1721521843177,-801.48,0.00013698,2]
[332786986,1721521843187,-500.0,0.00013698,2]
[332786987,1721521843197,-500.0,0.00013698,2]
[332786988,1721521843207,-1798.73,0.00013698,2]
[332786989,1721521843216,-500.0,0.00013698,2]
[332786990,1721521843226,-500.0,0.00013698,2]
[332786991,1721521843235,-500.0,0.00013698,2]
[332786992,1721521843244,-500.0,0.00013698,2]
[332786993,1721521843253,-500.0,0.00013698,2]
[332786995,1721521843262,-519.20187888,0.00013698,2]
[332786997,1721521843271,-604.42,0.00013698,2]
[332786998,1721521843281,-500.0,0.00013698,2]
[332786999,1721521843290,-500.0,0.00013698,2]
[332787000,1721521843300,-500.0,0.00013698,2]
[332787001,1721521843309,-500.0,0.00013698,2]
[332787002,1721521843318,-530.47,0.00013698,2]
[332787003,1721521843327,-500.0,0.00013698,2]
[332787004,1721521843336,-1691.21,0.00013698,2]
[332787005,1721521843346,-500.0,0.00013698,2]
[332787006,1721521843358,-500.0,0.00013698,2]
[332787007,1721521843369,-500.0,0.00013698,2]
[332787008,1721521843381,-500.0,0.00013698,2]
[332787010,1721521843394,-505.93712617,0.00013698,2]
[332787011,1721521843403,-500.0,0.00013698,2]
[332787013,1721521843413,-509.09,0.00013698,2]
[332787014,1721521843422,-500.0,0.00013698,2]
[332787015,1721521843432,-500.0,0.00013698,2]
[332787016,1721521843441,-500.0,0.00013698,2]
[332787017,1721521843451,-500.0,0.00013698,2]
[332787018,1721521843460,-500.0,0.00013698,2]
[332787019,1721521843469,-501.43999562,0.00013698,2]
[332787020,1721521843479,-643.35,0.00013698,2]
[332787021,1721521843489,-3149.53,0.00013698,2]
[332787022,1721521843498,-500.0,0.00013698,2]
[332787023,1721521843508,-500.0,0.00013698,2]
[332787024,1721521843518,-500.0,0.00013698,2]
[332787025,1721521843527,-500.0,0.00013698,2]
[332787026,1721521843538,-500.0,0.00013698,2]
[332787027,1721521843548,-500.0,0.00013698,2]
[332787029,1721521843558,-500.0,0.00013698,2]
[332787030,1721521843567,-1195.14,0.00013698,2]
[332787032,1721521843577,-500.0,0.00013698,2]
[332787033,1721521843587,-500.0,0.00013698,2]
[332787034,1721521843596,-1262.4,0.00013698,2]
[332787035,1721521843606,-503.14598103,0.00013698,2]
[332787037,1721521843616,-500.0,0.00013698,2]
[332787038,1721521843625,-500.0,0.00013698,2]
[332787039,1721521843635,-813.74,0.00013698,2]
[332787040,1721521843644,-721.67,0.00013698,2]
[332787041,1721521843654,-1055.27,0.00013698,2]
[332787042,1721521843663,-500.0,0.00013698,2]
[332787043,1721521843675,-500.0,0.00013698,2]
[332787044,1721521843688,-500.0,0.00013698,2]
[332787045,1721521843702,-500.0,0.00013698,2]
[332787046,1721521843716,-331.2748699,0.00013698,2]
[332787047,1721521843729,-500.0,0.00013698,2]
[332787049,1721521843740,-7370.76,0.00013698,2]
[332787051,1721521843751,-2237.74,0.00013698,2]
[332787052,1721521843764,-1006.13,0.00013698,2]
[332787053,1721521843776,-500.0,0.00013698,2]
[332787054,1721521843788,-500.0,0.00013698,2]
[332787055,1721521843801,-799.11,0.00013698,2]
[332787056,1721521843813,-523.97,0.00013698,2]
[332787057,1721521843826,-1304.02,0.00013698,2]
[332787058,1721521843839,-500.0,0.00013698,2]
[332787059,1721521843852,-928.86,0.00013698,2]
[332787060,1721521843869,-500.0,0.00013698,2]
[332787061,1721521843881,-335.80325809,0.00013698,2]
[332787062,1721521843892,-500.4941119,0.00013698,2]
[332787063,1721521843905,-500.0,0.00013698,2]
[332787064,1721521843918,-503.70346198,0.00013698,2]
[332787065,1721521843930,-606.28,0.00013698,2]
[332787066,1721521843942,-500.0,0.00013698,2]
[332787067,1721521843954,-500.0,0.00013698,2]
[332787068,1721521843965,-500.0,0.00013698,2]
[332787069,1721521843978,-3769.53,0.00013698,2]
[332787070,1721521843990,-500.0,0.00013698,2]
[332787071,1721521844002,-500.0,0.00013698,2]
[332787072,1721521844019,-1766.35,0.00013698,2]
[332787073,1721521844031,-500.0,0.00013698,2]
[332787074,1721521844043,-500.0,0.00013698,2]
[332787075,1721521844056,-500.0,0.00013698,2]
[332787076,1721521844069,-500.0,0.00013698,2]
[332787077,1721521844082,-500.0,0.00013698,2]
[332787078,1721521844095,-500.0,0.00013698,2]
[332787079,1721521844105,-500.0,0.00013698,2]
[332787080,1721521844115,-500.0,0.00013698,2]
[332787081,1721521844126,-500.0,0.00013698,2]
[332787082,1721521844137,-509.56,0.00013698,2]
[332787083,1721521844149,-1124.1,0.00013698,2]
[332787084,1721521844161,-500.0,0.00013698,2]
[332787085,1721521844174,-500.0,0.00013698,2]
[332787086,1721521844184,-1929.21,0.00013698,2]
[332787087,1721521844197,-561.15,0.00013698,2]
[332787088,1721521844208,-500.0,0.00013698,2]
[332787089,1721521844220,-500.0,0.00013698,2]
[332787090,1721521844232,-2071.5,0.00013698,2]
[332787091,1721521844242,-651.45,0.00013698,2]
[332787092,1721521844253,-500.0,0.00013698,2]
[332787093,1721521844263,-500.0,0.00013698,2]
[332787094,1721521844273,-500.0,0.00013698,2]
[332787095,1721521844285,-601.53,0.00013698,2]
[332787096,1721521844296,-500.0,0.00013698,2]
[332787097,1721521844308,-500.0,0.00013698,2]
[332787098,1721521844321,-5368.43,0.00013698,2]
[332787099,1721521844332,-501.25801672,0.00013698,2]
[332787100,1721521844342,-216.38158047,0.00013698,2]
[332787101,1721521844354,-623.85,0.00013698,2]
[332787102,1721521844366,-500.0,0.00013698,2]
[332787103,1721521844377,-500.0,0.00013698,2]
[332787104,1721521844388,-500.0,0.00013698,2]
[332787105,1721521844398,-500.0,0.00013698,2]
[332787106,1721521844409,-565.54,0.00013698,2]
[332787107,1721521844420,-502.92442484,0.00013698,2]
[332787108,1721521844431,-500.0,0.00013698,2]
[332787109,1721521844442,-1200.65,0.00013698,2]
[332787110,1721521844453,-500.0,0.00013698,2]
[332787111,1721521844464,-500.0,0.00013698,2]
[332787112,1721521844474,-2083.85,0.00013698,2]
[332787113,1721521844486,-500.0,0.00013698,2]
[332787114,1721521844498,-599.21,0.00013698,2]
[332787115,1721521844512,-569.4009346,0.00013698,2]
[332787116,1721521844523,-712.03,0.00013698,2]
[332787117,1721521844534,-171.07781714,0.00013698,2]
[332787118,1721521844545,-500.0,0.00013698,2]
[332787119,1721521844557,-597.25,0.00013698,2]
[332787120,1721521844568,-2807.71,0.00013698,2]
[332787121,1721521844580,-1545.27,0.00013698,2]
[332787122,1721521844590,-499.97734961,0.00013698,2]
[332787123,1721521844601,-7946.43,0.00013698,2]
[332787124,1721521844613,-1057.98,0.00013698,2]
[332787125,1721521844624,-500.0,0.00013698,2]
[332787126,1721521844635,-2173.33,0.00013698,2]
[332787127,1721521844646,-500.0,0.00013698,2]
[332787129,1721521844657,-398.38256931,0.00013698,2]
[332787130,1721521844667,-2472.19,0.00013698,2]
[332787131,1721521844678,-500.0,0.00013698,2]
[332787132,1721521844689,-527.16,0.00013698,2]
[332787133,1721521844699,-500.0,0.00013698,2]
[332787134,1721521844710,-1928.35,0.00013698,2]
[332787135,1721521844721,-1399.26,0.00013698,2]
[332787136,1721521844732,-507.51827141,0.00013698,2]
[332787137,1721521844743,-501.22838301,0.00013698,2]
[332787138,1721521844754,-506.65033317,0.00013698,2]
[332787139,1721521844764,-500.0,0.00013698,2]
[332787140,1721521844775,-2959.08,0.00013698,2]
[332787141,1721521844786,-500.0,0.00013698,2]
[332787142,1721521844797,-500.0,0.00013698,2]
[332787143,1721521844808,-1022.55,0.00013698,2]
[332787144,1721521844819,-500.0,0.00013698,2]
[332787145,1721521844830,-500.0,0.00013698,2]
[332787146,1721521844842,-500.0,0.00013698,2]
[332787147,1721521844853,-500.0,0.00013698,2]
[332787148,1721521844865,-500.0,0.00013698,2]
[332787149,1721521844876,-500.0,0.00013698,2]
[332787150,1721521844887,-581.14,0.00013698,2]
[332787151,1721521844898,-500.0,0.00013698,2]
[332787152,1721521844909,-500.0,0.00013698,2]
[332787153,1721521844920,-500.0,0.00013698,2]
[332787154,1721521844931,-2044.79,0.00013698,2]
[332787155,1721521844943,-2317.96,0.00013698,2]
[332787156,1721521844955,-500.0,0.00013698,2]
[332787157,1721521844967,-500.0,0.00013698,2]
[332787158,1721521844979,-500.0,0.00013698,2]
[332787159,1721521844990,-500.0,0.00013698,2]
[332787160,1721521845000,-500.0,0.00013698,2]
[332787161,1721521845016,-594.76,0.00013698,2]
[332787162,1721521845026,-500.0,0.00013698,2]
[332787163,1721521845037,-500.0,0.00013698,2]
[332787164,1721521845048,-500.0,0.00013698,2]
[332787165,1721521845059,-500.0,0.00013698,2]
[332787166,1721521845069,-500.0,0.00013698,2]
[332787167,1721521845080,-500.0,0.00013698,2]
[332787168,1721521845091,-500.0,0.00013698,2]
[332787169,1721521845102,-500.0,0.00013698,2]
[332787170,1721521845113,-500.0,0.00013698,2]
[332787171,1721521845124,-500.0,0.00013698,2]
[332787172,1721521845135,-669.72,0.00013698,2]
[332787173,1721521845146,-500.0,0.00013698,2]
[332787174,1721521845157,-500.0,0.00013698,2]
[332787175,1721521845168,-500.0,0.00013698,2]
[332787176,1721521845179,-500.0,0.00013698,2]
[332787177,1721521845190,-500.0,0.00013698,2]
[332787178,1721521845201,-4825.35,0.00013698,2]
[332787179,1721521845212,-501.52214706,0.00013698,2]
[332787180,1721521845223,-647.57,0.00013698,2]
[332787181,1721521845234,-16155.93,0.00013698,2]
[332787182,1721521845245,-500.0,0.00013698,2]
[332787183,1721521845255,-500.0,0.00013698,2]
[332787184,1721521845266,-500.0,0.00013698,2]
[332787185,1721521845276,-500.0,0.00013698,2]
[332787186,1721521845287,-500.0,0.00013698,2]
[332787187,1721521845299,-1017.95,0.00013698,2]
[332787188,1721521845309,-4419.49,0.00013698,2]
[332787189,1721521845320,-500.0,0.00013698,2]
[332787190,1721521845331,-3512.78,0.00013698,2]
[332787191,1721521845342,-500.0,0.00013698,2]
[332787192,1721521845353,-603.13,0.00013698,2]
[332787193,1721521845367,-500.0,0.00013698,2]
[332787194,1721521845379,-7401.26,0.00013698,2]
[332787195,1721521845390,-500.0,0.00013698,2]
[332787196,1721521845402,-2904.04,0.00013698,2]
[332787197,1721521845414,-500.0,0.00013698,2]
[332787198,1721521845425,-537.31,0.00013698,2]
[332787199,1721521845436,-10729.85,0.00013698,2]
[332787200,1721521845447,-500.0,0.00013698,2]
[332787201,1721521845458,-1794.25,0.00013698,2]
[332787202,1721521845468,-500.0,0.00013698,2]
[332787203,1721521845480,-500.0,0.00013698,2]
[332787204,1721521845491,-1594.29,0.00013698,2]
[332787205,1721521845503,-7923.5,0.00013698,2]
[332787206,1721521845516,-1885.9,0.00013698,2]
[332787207,1721521845528,-1320.11,0.00013698,2]
[332787208,1721521845541,-500.0,0.00013698,2]
[332787209,1721521845554,-609.58617168,0.00013698,2]
[332787210,1721521845567,-2397.08,0.00013698,2]
[332787211,1721521845579,-506.666072,0.00013698,2]
[332787212,1721521845589,-1367.07,0.00013698,2]
[332787213,1721521845600,-501.40132505,0.00013698,2]
[332787214,1721521845613,-500.0,0.00013698,2]
[332787215,1721521845624,-500.0,0.00013698,2]
[332787216,1721521845635,-1260.72,0.00013698,2]
[332787217,1721521845646,-667.97,0.00013698,2]
[332787218,1721521845656,-2467.16,0.00013698,2]
[332787219,1721521845667,-1068.87,0.00013698,2]
[332787220,1721521845678,-500.0,0.00013698,2]
[332787221,1721521845689,-3050.56,0.00013698,2]
[332787222,1721521845700,-2784.42,0.00013698,2]
[332787223,1721521845712,-4790.27,0.00013698,2]
[332787224,1721521845723,-852.03,0.00013698,2]
[332787225,1721521845735,-548.76,0.00013698,2]
[332787226,1721521845747,-991.9,0.00013698,2]
[332787227,1721521845758,-512.07655604,0.00013698,2]